[Event "EYTCC U12 Open 2019"]
[Site "Pardubice"]
[Date "2019.07.15"]
[Round "5.16"]
[White "Buchta, Bartolomej"]
[Black "Werner, Hong Quan Dan"]
[Result "1/2-1/2"]
[ECO "C63"]
[WhiteElo "1585"]
[BlackElo "1734"]
[Annotator "NA"]
[PlyCount "101"]
[EventDate "2019.07.11"]
[EventType "swiss"]
[EventCountry "CZE"]
[SourceTitle "playchess.com"]
[Source "ChessBase"]
[SourceQuality "1"]
[WhiteTeam "Czech Republic"]
[BlackTeam "Czech Republic"]
[WhiteTeamCountry "CZE"]
[BlackTeamCountry "CZE"]
[TimeControl "40/5400+30:1800+30"]

1. e4 e5 2. Nf3 Nc6 3. Bb5 f5 4. Nc3 fxe4 5. Nxe4 Nf6 6. Nxf6+ Qxf6 7. d3 d6 8. c3 Be7 9. d4 exd4 10. Nxd4 O-O 11. Be3 Nxd4 12. Bxd4 Qg5 13. Qb3+ Kh8 14. Be3 Qxg2 15. O-O-O Bg5 16. Qc4 Rxf2 17. Bxg5 Qxg5+ 18. Kb1 Bf5+ 19. Ka1 a6 20. Ba4 Rf4 21. Qb3 b5 22. Qd5 c6 23. Qxc6 Be4 24. Qxd6 Bxh1 25. Bc2 Raf8 26. Bb1 Bf3 27. Re1 Qf6 28. Re6 Qd8 29. Qxa6 R4f6 30. Rxf6 Rxf6 31. Qxb5 Rf8 32. a4 Qb8 33. Qc5 Qc8 34. Qb5 Bc6 35. Qd3 g6 36. Qd4+ Kg8 37. Ba2+ Rf7 38. a5 Qd7 39. Bxf7+ Kxf7 40. Qf4+ Ke8 41. Qb8+ Qd8 42. Qe5+ Kd7 43. b4 Qf8 44. Qd4+ Qd6 45. Qa7+ Qc7 46. Qf2 Bb5 47. Qd2+ Qd6 48. Qh6 Qd1+ 49. Kb2 Qe2+ 50. Ka3 Qc2 51. Qxh7+ 1/2-1/2

[Event "EYTCC U12 Open 2019"]
[Site "Pardubice"]
[Date "2019.07.15"]
[Round "5.17"]
[White "Day, Tobias"]
[Black "Dias, Savin"]
[Result "1-0"]
[ECO "B32"]
[WhiteElo "1826"]
[BlackElo "1840"]
[Annotator "NA"]
[PlyCount "174"]
[EventDate "2019.07.11"]
[EventType "swiss"]
[EventCountry "CZE"]
[SourceTitle "playchess.com"]
[Source "ChessBase"]
[SourceQuality "1"]
[WhiteTeam "Czech Republic"]
[BlackTeam "England"]
[WhiteTeamCountry "CZE"]
[BlackTeamCountry "ENG"]
[TimeControl "40/5400+30:1800+30"]

1. e4 {[%emt 0:00:00]} c5 {[%emt 0:00:00]} 2. Nf3 {[%emt 0:00:00]} Nc6 {[%emt 0:00:00]} 3. d4 {[%emt 0:00:34]} cxd4 {[%emt 0:00:00]} 4. Nxd4 {[%emt 0:00:08]} g6 {[%emt 0:00:00]} 5. Be3 {[%emt 0:01:13]} Bg7 {[%emt 0:00:06]} 6. Qd2 {[%emt 0:03:52]} Nf6 {[%emt 0:00:37]} 7. Nc3 {[%emt 0:01:35]} O-O {[%emt 0:02:55]} 8. Be2 {[%emt 0:03:35]} d5 {[%emt 0:02:46]} 9. Nxc6 {[%emt 0:08:15]} bxc6 {[%emt 0:01:24]} 10. exd5 {[%emt 0:07:06]} Nxd5 {[%emt 0:00:38]} 11. Nxd5 {[%emt 0:03:11]} cxd5 {[%emt 0:00:10]} 12. c3 {[%emt 0:05:14]} Qa5 {[%emt 0:03:58]} 13. h4 {[%emt 0:13:10]} Rb8 {[%emt 0:00:53]} 14. O-O {[%emt 0:07:35]} d4 {[%emt 0:10:44]} 15. Bxd4 {[%emt 0:04:26]} Rd8 {[%emt 0:00:42]} 16. Qe3 {[%emt 0:09:40]} Bxd4 {[%emt 0:02:42]} 17. cxd4 {[%emt 0:00:46]} Rxb2 {[%emt 0:00:40]} 18. Bc4 {[%emt 0:02:46]} e6 {[%emt 0:00:51]} 19. Rfd1 {[%emt 0:01:49]} Rb6 {[%emt 0:06:32]} 20. Bb3 {[%emt 0:03:30]} Bb7 {[%emt 0:00:45]} 21. Rac1 {[%emt 0:01:37]} Rbd6 {[%emt 0:01:03]} 22. Rd3 {[%emt 0:07:58]} Bd5 {[%emt 0:01:44]} 23. Rc5 {[%emt 0:03:35]} Qa6 {[%emt 0:01:30]} 24. Bxd5 {[%emt 0:03:10]} Rxd5 {[%emt 0:00:17]} 25. Ra3 {[%emt 0:03:49]} Qb7 {[%emt 0:01:05]} 26. Rc4 {[%emt 0:01:18]} a5 {[%emt 0:08:44]} 27. Kh2 {[%emt 0:01:58]} Rh5 {[%emt 0:00:18]} 28. g3 {[%emt 0:00:43]} Rhd5 {[%emt 0:00:54]} 29. Raa4 {[%emt 0:00:52]} Qb2 {[%emt 0:00:34]} 30. Kg2 {[%emt 0:00:32]} Rf5 {[%emt 0:02:05]} 31. g4 {[%emt 0:00:28]} Qb7+ {[%emt 0:00:12]} 32. f3 {[%emt 0:00:30]} Rb5 {[%emt 0:00:09]} 33. Rc2 {[%emt 0:00:20]} Rc8 {[%emt 0:01:35]} 34. Rxc8+ {[%emt 0:00:25]} Qxc8 {[%emt 0:00:21]} 35. Qe2 {[%emt 0:00:23]} Qb7 {[%emt 0:00:38]} 36. Rc4 {[%emt 0:00:23]} Qb6 {[%emt 0:01:19]} 37. Kg3 {[%emt 0:00:55]} Qd6+ {[%emt 0:01:45]} 38. Kh3 {[%emt 0:00:37]} Rb1 {[%emt 0:01:19]} 39. Rc8+ {[%emt 0:00:31]} Kg7 {[%emt 0:00:05]} 40. Qe5+ {[%emt 0:00:16]} Qxe5 {[%emt 0:00:07]} 41. dxe5 {[%emt 0:30:04]} Rb2 {[%emt 0:30:10]} 42. a4 {[%emt 0:00:00]} Rb4 {[%emt 0:00:00]} 43. Kg3 {[%emt 0:00:00]} Rxa4 {[%emt 0:00:00]} 44. f4 {[%emt 0:00:00]} Ra3+ {[%emt 0:00:00]} 45. Kg2 {[%emt 0:00:00]} a4 {[%emt 0:00:00]} 46. Rc7 {[%emt 0:00:00]} Ra2+ {[%emt 0:00:00]} 47. Kf3 {[%emt 0:00:00]} Ra1 {[%emt 0:00:00]} 48. Ra7 {[%emt 0:00:00]} a3 {[%emt 0:00:00]} 49. Kg2 {[%emt 0:00:00]} a2 {[%emt 0:00:00]} 50. g5 {[%emt 0:00:00]} Kf8 {[%emt 0:00:00]} 51. Ra3 {[%emt 0:00:00]} Ke7 {[%emt 0:00:00]} 52. Ra7+ {[%emt 0:00:00]} Ke8 {[%emt 0:00:00]} 53. Ra3 {[%emt 0:00:00]} Kd7 {[%emt 0:00:00]} 54. Rd3+ {[%emt 0:00:00]} Kc6 {[%emt 0:00:00]} 55. Ra3 {[%emt 0:00:00]} Kc5 {[%emt 0:00:00]} 56. Ra8 {[%emt 0:00:00]} Kd4 {[%emt 0:00:00]} 57. Ra4+ {[%emt 0:00:00]} Ke3 {[%emt 0:00:00]} 58. Kh2 {[%emt 0:00:00]} Kf3 {[%emt 0:00:00]} 59. Ra3+ {[%emt 0:00:00]} Kxf4 {[%emt 0:00:00]} 60. Ra5 {[%emt 0:00:00]} Kf5 {[%emt 0:00:00]} 61. Kg2 {[%emt 0:00:00]} Ke4 {[%emt 0:00:00]} 62. Kh2 {[%emt 0:00:00]} Kd4 {[%emt 0:00:00]} 63. Kg2 {[%emt 0:00:00]} Kc4 {[%emt 0:00:00]} 64. Ra8 {[%emt 0:00:00]} Kb5 {[%emt 0:00:00]} 65. Rb8+ {[%emt 0:00:00]} Kc5 {[%emt 0:00:00]} 66. Ra8 {[%emt 0:00:00]} Kd5 {[%emt 0:00:00]} 67. Ra5+ {[%emt 0:00:00]} Ke4 {[%emt 0:00:00]} 68. Kh2 {[%emt 0:00:22]} Kf4 {[%emt 0:00:00]} 69. Kg2 {[%emt 0:00:33]} Kg4 {[%emt 0:00:00]} 70. Ra4+ {[%emt 0:00:15]} Kh5 {[%emt 0:00:00]} 71. Kh2 {[%emt 0:00:21]} h6 {[%emt 0:00:00]} 72. gxh6 {[%emt 0:01:49]} Kxh6 {[%emt 0:00:00]} 73. Kg2 {[%emt 0:00:44]} g5 {[%emt 0:00:00]} 74. hxg5+ {[%emt 0:00:21]} Kxg5 {[%emt 0:00:00]} 75. Kh2 {[%emt 0:01:19]} f6 {[%emt 0:00:00]} 76. exf6 {[%emt 0:00:30]} Kxf6 {[%emt 0:00:00]} 77. Kg2 {[%emt 0:00:11]} e5 {[%emt 0:00:00]} 78. Ra6+ {[%emt 0:00:20]} Kf5 {[%emt 0:00:00]} 79. Ra8 {[%emt 0:00:10]} e4 {[%emt 0:00:00]} 80. Rf8+ {[%emt 0:00:06]} Ke5 {[%emt 0:00:00]} 81. Re8+ {[%emt 0:00:05]} Kd4 {[%emt 0:00:00]} 82. Rd8+ {[%emt 0:00:08]} Kc5 {[%emt 0:00:00]} 83. Rc8+ {[%emt 0:00:15]} Kd6 {[%emt 0:00:00]} 84. Rd8+ {[%emt 0:00:11]} Ke7 {[%emt 0:00:00]} 85. Ra8 {[%emt 0:00:06]} e3 {[%emt 0:00:00]} 86. Ra3 {[%emt 0:00:22]} Kd6 {[%emt 0:00:00]} 87. Rxe3 {[%emt 0:00:51]} Rd1 {[%emt 0:00:00]} 1-0

[Event "EYTCC U12 Open 2019"]
[Site "Pardubice"]
[Date "2019.07.15"]
[Round "5.18"]
[White "Merriman, James"]
[Black "Hladky, Tadeas"]
[Result "1/2-1/2"]
[ECO "D92"]
[WhiteElo "1808"]
[BlackElo "1638"]
[Annotator "NA"]
[PlyCount "158"]
[EventDate "2019.07.11"]
[EventType "swiss"]
[EventCountry "CZE"]
[SourceTitle "playchess.com"]
[Source "ChessBase"]
[SourceQuality "1"]
[WhiteTeam "England"]
[BlackTeam "Czech Republic"]
[WhiteTeamCountry "ENG"]
[BlackTeamCountry "CZE"]
[TimeControl "40/5400+30:1800+30"]

1. d4 {[%emt 0:00:00]} Nf6 {[%emt 0:00:00]} 2. c4 {[%emt 0:00:00]} g6 {[%emt 0:00:00]} 3. Nc3 {[%emt 0:00:00]} d5 {[%emt 0:00:00]} 4. Nf3 {[%emt 0:00:00]} Bg7 {[%emt 0:00:00]} 5. Bf4 {[%emt 0:00:00]} dxc4 {[%emt 0:00:04]} 6. e3 {[%emt 0:00:40]} Be6 {[%emt 0:00:26]} 7. Ng5 {[%emt 0:00:15]} Bd5 {[%emt 0:00:11]} 8. e4 {[%emt 0:00:07]} h6 {[%emt 0:00:12]} 9. exd5 {[%emt 0:00:28]} hxg5 {[%emt 0:00:05]} 10. Bxg5 {[%emt 0:00:53]} Nxd5 {[%emt 0:00:06]} 11. Bxc4 {[%emt 0:00:26]} Nb6 {[%emt 0:00:05]} 12. Bb3 {[%emt 0:01:13]} O-O {[%emt 0:00:41]} 13. O-O {[%emt 0:00:35]} Nc6 {[%emt 0:00:21]} 14. d5 {[%emt 0:04:06]} Nd4 {[%emt 0:00:26]} 15. Re1 {[%emt 0:04:39]} Re8 {[%emt 0:01:00]} 16. h4 {[%emt 0:12:43]} Nxb3 {[%emt 0:03:40]} 17. Qxb3 {[%emt 0:01:20]} Bxc3 {[%emt 0:02:26]} 18. bxc3 {[%emt 0:00:30]} Qxd5 {[%emt 0:00:29]} 19. Qc2 {[%emt 0:01:41]} e6 {[%emt 0:03:16]} 20. Re3 {[%emt 0:02:25]} Qf5 {[%emt 0:01:37]} 21. Qe2 {[%emt 0:01:53]} e5 {[%emt 0:08:49]} 22. Rg3 {[%emt 0:09:46]} Re6 {[%emt 0:06:48]} 23. h5 {[%emt 0:13:19]} Nd5 {[%emt 0:05:09]} 24. Qb5 {[%emt 0:07:09]} Nxc3 {[%emt 0:07:49]} 25. Rxc3 {[%emt 0:01:28]} Rb6 {[%emt 0:01:18]} 26. Qd5 {[%emt 0:00:41]} Qxg5 {[%emt 0:02:23]} 27. hxg6 {[%emt 0:01:39]} Rxg6 {[%emt 0:00:55]} 28. Qxb7 {[%emt 0:00:24]} Rd8 {[%emt 0:01:40]} 29. Rg3 {[%emt 0:01:21]} Qh5 {[%emt 0:02:45]} 30. Rxg6+ {[%emt 0:05:24]} fxg6 {[%emt 0:03:30]} 31. Qb3+ {[%emt 0:00:59]} Kg7 {[%emt 0:01:18]} 32. Rc1 {[%emt 0:01:24]} Rd7 {[%emt 0:01:01]} 33. Qa4 {[%emt 0:00:46]} Qf5 {[%emt 0:02:11]} 34. Qxa7 {[%emt 0:00:48]} Qg4 {[%emt 0:03:32]} 35. Qe3 {[%emt 0:05:50]} Rd1+ {[%emt 0:00:51]} 36. Rxd1 {[%emt 0:00:04]} Qxd1+ {[%emt 0:00:06]} 37. Kh2 {[%emt 0:00:02]} Qh5+ {[%emt 0:10:32]} 38. Qh3 {[%emt 0:01:07]} Qe2 {[%emt 0:00:09]} 39. Qd7+ {[%emt 0:00:48]} Kh6 {[%emt 0:01:26]} 40. Qh3+ {[%emt 0:00:46]} Kg7 {[%emt 0:00:02]} 41. Qh4 {[%emt 0:32:22]} Qxa2 {[%emt 0:30:12]} 42. Qe7+ {[%emt 0:00:36]} Qf7 {[%emt 0:00:04]} 43. Qxe5+ {[%emt 0:00:08]} Kh7 {[%emt 0:00:09]} 44. f4 {[%emt 0:01:45]} Qg7 {[%emt 0:01:32]} 45. Qe4 {[%emt 0:00:52]} Qf7 {[%emt 0:01:00]} 46. Kg3 {[%emt 0:00:22]} Qd7 {[%emt 0:00:26]} 47. Kf3 {[%emt 0:00:42]} Qd1+ {[%emt 0:00:06]} 48. Ke3 {[%emt 0:01:05]} Qg1+ {[%emt 0:01:07]} 49. Kd3 {[%emt 0:00:13]} Qb1+ {[%emt 0:00:12]} 50. Kd4 {[%emt 0:00:28]} Qb4+ {[%emt 0:00:09]} 51. Ke3 {[%emt 0:01:39]} Qe1+ {[%emt 0:00:08]} 52. Kf3 {[%emt 0:00:06]} Qd1+ {[%emt 0:00:17]} 53. Kg3 {[%emt 0:00:15]} Qd7 {[%emt 0:00:06]} 54. Kh4 {[%emt 0:01:13]} c6 {[%emt 0:04:53]} 55. g4 {[%emt 0:02:25]} Qc7 {[%emt 0:01:04]} 56. Qc4 {[%emt 0:06:57]} Qe7+ {[%emt 0:02:16]} 57. Kg3 {[%emt 0:01:00]} c5 {[%emt 0:00:37]} 58. Kf3 {[%emt 0:00:33]} Qb7+ {[%emt 0:00:26]} 59. Ke3 {[%emt 0:01:07]} Qe7+ {[%emt 0:00:09]} 60. Qe4 {[%emt 0:00:34]} Qd7 {[%emt 0:00:50]} 61. f5 {[%emt 0:00:36]} gxf5 {[%emt 0:00:59]} 62. gxf5 {[%emt 0:00:12]} Qd4+ {[%emt 0:00:17]} 63. Qxd4 {[%emt 0:00:09]} cxd4+ {[%emt 0:00:07]} 64. Kxd4 {[%emt 0:00:07]} Kg7 {[%emt 0:00:02]} 65. Ke5 {[%emt 0:00:34]} Kf7 {[%emt 0:00:05]} 66. Kd5 Kf6 {[%emt 0:00:06]} 67. Ke4 {[%emt 0:00:30]} Kf7 {[%emt 0:00:04]} 68. Kf4 {[%emt 0:00:10]} Kf6 {[%emt 0:00:04]} 69. Kg4 {[%emt 0:00:10]} Kf7 {[%emt 0:00:04]} 70. Kg5 {[%emt 0:00:20]} Kg7 {[%emt 0:00:08]} 71. f6+ {[%emt 0:00:04]} Kf7 {[%emt 0:00:03]} 72. Kf5 {[%emt 0:00:06]} Kf8 {[%emt 0:00:03]} 73. Ke4 {[%emt 0:00:22]} Kf7 {[%emt 0:00:01]} 74. Ke5 {[%emt 0:00:15]} Kf8 {[%emt 0:00:07]} 75. Ke6 {[%emt 0:00:06]} Ke8 {[%emt 0:00:03]} 76. Kd6 {[%emt 0:00:14]} Kf7 {[%emt 0:00:02]} 77. Ke5 {[%emt 0:00:08]} Kf8 {[%emt 0:00:03]} 78. Kf5 {[%emt 0:00:08]} Kf7 {[%emt 0:00:01]} 79. Kg5 {[%emt 0:00:06]} Kf8 {[%emt 0:00:05]} 1/2-1/2

[Event "EYTCC U12 Open 2019"]
[Site "Pardubice"]
[Date "2019.07.15"]
[Round "5.19"]
[White "Mohapl, Tomas"]
[Black "Thatte, Nishchal"]
[Result "0-1"]
[ECO "C18"]
[WhiteElo "1585"]
[BlackElo "1686"]
[Annotator "NA"]
[PlyCount "62"]
[EventDate "2019.07.11"]
[EventType "swiss"]
[EventCountry "CZE"]
[SourceTitle "playchess.com"]
[Source "ChessBase"]
[SourceQuality "1"]
[WhiteTeam "Czech Republic"]
[BlackTeam "England"]
[WhiteTeamCountry "CZE"]
[BlackTeamCountry "ENG"]
[TimeControl "40/5400+30:1800+30"]

1. e4 {[%emt 0:00:00]} e6 {[%emt 0:00:00]} 2. d4 {[%emt 0:00:34]} d5 {[%emt 0:00:00]} 3. Nc3 {[%emt 0:00:49]} Bb4 {[%emt 0:00:24]} 4. e5 {[%emt 0:01:35]} c5 {[%emt 0:00:32]} 5. a3 {[%emt 0:03:33]} Bxc3+ {[%emt 0:00:20]} 6. bxc3 {[%emt 0:00:09]} Ne7 {[%emt 0:00:40]} 7. Qg4 {[%emt 0:03:03]} cxd4 {[%emt 0:01:01]} 8. Bd3 {[%emt 0:18:20]} Qa5 {[%emt 0:01:05]} 9. Ne2 {[%emt 0:02:44]} Nd7 {[%emt 0:15:09]} 10. O-O {[%emt 0:11:21]} dxc3 {[%emt 0:18:00]} 11. Qxg7 {[%emt 0:12:27]} Rg8 {[%emt 0:01:00]} 12. Qxh7 {[%emt 0:03:13]} Nxe5 {[%emt 0:05:12]} 13. Bf4 {[%emt 0:05:44]} Nxd3 {[%emt 0:09:11]} 14. Qxd3 {[%emt 0:00:33]} Bd7 {[%emt 0:02:36]} 15. Rfe1 {[%emt 0:13:37]} Rc8 {[%emt 0:08:33]} 16. Qh7 {[%emt 0:05:37]} Qa4 {[%emt 0:06:14]} 17. h4 {[%emt 0:08:28]} Rc4 {[%emt 0:05:05]} 18. Bg3 {[%emt 0:01:50]} Rcg4 {[%emt 0:01:54]} 19. Nxc3 {[%emt 0:02:47]} Qd4 {[%emt 0:00:35]} 20. Qd3 {[%emt 0:01:36]} Qc5 {[%emt 0:02:51]} 21. Kh2 {[%emt 0:01:27]} Bc6 {[%emt 0:02:20]} 22. Red1 {[%emt 0:00:17]} d4 {[%emt 0:01:32]} 23. Ne2 {[%emt 0:00:27]} Qd5 {[%emt 0:03:06]} 24. Rg1 {[%emt 0:00:54]} Nf5 {[%emt 0:00:51]} 25. Qf3 {[%emt 0:00:39]} Qxf3 {[%emt 0:05:17]} 26. gxf3 {[%emt 0:00:04]} Bxf3 {[%emt 0:00:14]} 27. Nf4 {[%emt 0:00:35]} Nxh4 {[%emt 0:00:44]} 28. Nd3 {[%emt 0:00:30]} Rh8 {[%emt 0:00:42]} 29. Nf4 {[%emt 0:00:34]} Rxf4 {[%emt 0:00:47]} 30. Bxh4 {[%emt 0:00:24]} Rfxh4+ {[%emt 0:02:20]} 31. Kg3 {[%emt 0:00:06]} Rh3+ {[%emt 0:00:09]} 0-1

[Event "EYTCC U12 Open 2019"]
[Site "Pardubice"]
[Date "2019.07.15"]
[Round "5.20"]
[White "Trivedi, Aarnavh"]
[Black "Bouska, Jiri"]
[Result "1-0"]
[ECO "A40"]
[WhiteElo "1669"]
[BlackElo "1391"]
[Annotator "NA"]
[PlyCount "99"]
[EventDate "2019.07.11"]
[EventType "swiss"]
[EventCountry "CZE"]
[SourceTitle "playchess.com"]
[Source "ChessBase"]
[SourceQuality "1"]
[WhiteTeam "England"]
[BlackTeam "Czech Republic"]
[WhiteTeamCountry "ENG"]
[BlackTeamCountry "CZE"]
[TimeControl "40/5400+30:1800+30"]

1. d4 {[%emt 0:00:00]} g6 {[%emt 0:00:00]} 2. g3 {[%emt 0:00:59]} Bg7 {[%emt 0:00:49]} 3. Bg2 {[%emt 0:00:50]} d6 {[%emt 0:00:55]} 4. c3 {[%emt 0:01:07]} Nd7 {[%emt 0:01:50]} 5. e4 {[%emt 0:03:08]} e5 {[%emt 0:01:50]} 6. Ne2 {[%emt 0:01:13]} Ngf6 {[%emt 0:01:53]} 7. O-O {[%emt 0:02:22]} O-O {[%emt 0:02:57]} 8. h3 {[%emt 0:04:26]} b6 {[%emt 0:01:36]} 9. Qc2 {[%emt 0:03:20]} Bb7 {[%emt 0:02:48]} 10. Be3 {[%emt 0:01:55]} Ne8 {[%emt 0:02:25]} 11. Nd2 {[%emt 0:09:37]} f5 {[%emt 0:01:06]} 12. dxe5 {[%emt 0:00:35]} dxe5 {[%emt 0:00:39]} 13. f4 {[%emt 0:00:59]} Nd6 {[%emt 0:01:36]} 14. c4 {[%emt 0:10:35]} exf4 {[%emt 0:01:41]} 15. gxf4 {[%emt 0:08:03]} Re8 {[%emt 0:00:29]} 16. e5 {[%emt 0:00:59]} Bxg2 {[%emt 0:00:27]} 17. Kxg2 {[%emt 0:00:28]} Nxe5 {[%emt 0:00:34]} 18. fxe5 {[%emt 0:03:32]} Rxe5 {[%emt 0:00:16]} 19. Rf3 {[%emt 0:01:27]} Qe7 {[%emt 0:00:31]} 20. Qb3 {[%emt 0:01:50]} c5 {[%emt 0:00:36]} 21. Nf4 {[%emt 0:01:20]} Re8 {[%emt 0:01:19]} 22. Nd5 {[%emt 0:01:16]} Qd8 {[%emt 0:01:13]} 23. Bf4 {[%emt 0:07:20]} Re2+ {[%emt 0:03:57]} 24. Rf2 {[%emt 0:02:27]} Rxf2+ {[%emt 0:00:09]} 25. Kxf2 {[%emt 0:00:11]} Qh4+ {[%emt 0:00:20]} 26. Qg3 {[%emt 0:00:36]} Bd4+ {[%emt 0:00:21]} 27. Kf1 {[%emt 0:01:23]} Qh5 {[%emt 0:05:07]} 28. Re1 {[%emt 0:03:15]} Rxe1+ {[%emt 0:00:31]} 29. Kxe1 {[%emt 0:00:27]} Ne4 {[%emt 0:01:25]} 30. Nxe4 {[%emt 0:01:54]} fxe4 {[%emt 0:00:10]} 31. Qg4 {[%emt 0:00:38]} Qxg4 {[%emt 0:02:02]} 32. hxg4 {[%emt 0:00:25]} h5 {[%emt 0:01:19]} 33. gxh5 {[%emt 0:00:52]} gxh5 {[%emt 0:00:39]} 34. b3 {[%emt 0:00:35]} Kf7 {[%emt 0:01:41]} 35. Ne3 {[%emt 0:03:35]} Kf6 {[%emt 0:01:55]} 36. Kf2 {[%emt 0:00:53]} Be5 {[%emt 0:01:02]} 37. Nd5+ {[%emt 0:06:29]} Kf5 {[%emt 0:00:47]} 38. Bxe5 {[%emt 0:02:01]} Kxe5 {[%emt 0:00:07]} 39. Ke3 {[%emt 0:00:32]} h4 {[%emt 0:01:03]} 40. Nf4 {[%emt 0:00:30]} Kf5 {[%emt 0:00:15]} 41. a3 {[%emt 0:31:00]} Ke5 {[%emt 0:31:53]} 42. Ng6+ {[%emt 0:00:16]} Kd6 {[%emt 0:00:11]} 43. Nxh4 {[%emt 0:00:14]} Kc6 {[%emt 0:01:36]} 44. Kxe4 {[%emt 0:01:00]} Kb7 {[%emt 0:00:13]} 45. Kd5 {[%emt 0:01:11]} Ka6 {[%emt 0:01:51]} 46. Nf5 {[%emt 0:00:39]} Ka5 {[%emt 0:00:29]} 47. Ne7 {[%emt 0:00:50]} Ka6 {[%emt 0:00:19]} 48. Kc6 {[%emt 0:02:06]} Ka5 {[%emt 0:00:16]} 49. Kb7 {[%emt 0:00:06]} a6 {[%emt 0:07:21]} 50. Nc6# {[%emt 0:00:08]} 1-0

[Event "EYTCC U12 Open 2019"]
[Site "Pardubice"]
[Date "2019.07.15"]
[Round "5.21"]
[White "Strybuk, Artsiom I"]
[Black "Herega, Nejc"]
[Result "1-0"]
[ECO "A52"]
[WhiteElo "2193"]
[BlackElo "1939"]
[Annotator "NA"]
[PlyCount "101"]
[EventDate "2019.07.11"]
[EventType "swiss"]
[EventCountry "CZE"]
[SourceTitle "playchess.com"]
[Source "ChessBase"]
[SourceQuality "1"]
[WhiteTeam "Belarus"]
[BlackTeam "Slovenia"]
[WhiteTeamCountry "BLR"]
[BlackTeamCountry "SLO"]
[TimeControl "40/5400+30:1800+30"]

1. d4 {[%emt 0:00:00]} Nf6 {[%emt 0:00:00]} 2. c4 {[%emt 0:00:00]} e5 {[%emt 0:00:00]} 3. dxe5 {[%emt 0:05:03]} Ng4 {[%emt 0:00:00]} 4. Nf3 {[%emt 0:00:53]} Bc5 {[%emt 0:00:24]} 5. e3 {[%emt 0:00:51]} Nc6 {[%emt 0:00:30]} 6. Be2 {[%emt 0:05:41]} Ngxe5 {[%emt 0:01:46]} 7. O-O {[%emt 0:01:44]} O-O {[%emt 0:00:07]} 8. Nc3 {[%emt 0:00:47]} Re8 {[%emt 0:00:51]} 9. b3 {[%emt 0:01:45]} Nxf3+ {[%emt 0:02:23]} 10. Bxf3 {[%emt 0:00:09]} Ne5 {[%emt 0:00:18]} 11. Bb2 {[%emt 0:02:11]} a5 {[%emt 0:07:09]} 12. h3 {[%emt 0:04:02]} Nxf3+ {[%emt 0:05:56]} 13. Qxf3 {[%emt 0:00:02]} Ra6 {[%emt 0:01:48]} 14. Nd5 {[%emt 0:08:32]} Rh6 {[%emt 0:11:48]} 15. Qg3 {[%emt 0:08:26]} Rg6 {[%emt 0:01:19]} 16. Qxc7 {[%emt 0:00:49]} Qg5 {[%emt 0:04:23]} 17. Qh2 {[%emt 0:00:09]} Bd6 {[%emt 0:07:48]} 18. f4 {[%emt 0:07:07]} Qf5 {[%emt 0:04:17]} 19. Kh1 {[%emt 0:10:42]} b5 {[%emt 0:07:02]} 20. Rad1 {[%emt 0:06:07]} bxc4 {[%emt 0:04:11]} 21. bxc4 {[%emt 0:01:29]} Ba6 {[%emt 0:02:14]} 22. Rc1 {[%emt 0:18:03]} Bxc4 {[%emt 0:04:16]} 23. Rxc4 {[%emt 0:00:16]} Qxd5 {[%emt 0:00:24]} 24. Rfc1 {[%emt 0:01:19]} h6 {[%emt 0:05:20]} 25. Bd4 {[%emt 0:05:15]} Kh7 {[%emt 0:02:26]} 26. Qg1 {[%emt 0:00:54]} Ba3 {[%emt 0:07:50]} 27. R1c2 {[%emt 0:00:26]} Rc6 {[%emt 0:02:11]} 28. Qf1 {[%emt 0:01:15]} Rxc4 {[%emt 0:03:17]} 29. Qxc4 {[%emt 0:00:13]} Qxc4 {[%emt 0:03:26]} 30. Rxc4 {[%emt 0:00:01]} d5 {[%emt 0:01:18]} 31. Rc7 {[%emt 0:00:55]} Re7 {[%emt 0:01:10]} 32. Rc8 {[%emt 0:00:05]} Bb4 {[%emt 0:05:08]} 33. Kg1 {[%emt 0:00:15]} Rd7 {[%emt 0:01:18]} 34. Kf2 {[%emt 0:00:08]} Bd6 {[%emt 0:01:28]} 35. Kf3 {[%emt 0:02:02]} Kg6 {[%emt 0:01:01]} 36. Ra8 {[%emt 0:01:55]} Bb4 {[%emt 0:01:39]} 37. Rg8 {[%emt 0:01:25]} f6 {[%emt 0:00:45]} 38. Rc8 {[%emt 0:00:08]} h5 {[%emt 0:00:41]} 39. a4 {[%emt 0:00:43]} Kf5 {[%emt 0:00:24]} 40. Rh8 {[%emt 0:02:22]} g6 {[%emt 0:00:47]} 41. Rg8 {[%emt 0:09:17]} h4 {[%emt 0:03:19]} 42. Rc8 {[%emt 0:06:41]} Rd6 {[%emt 0:05:09]} 43. Rh8 {[%emt 0:01:09]} g5 {[%emt 0:02:26]} 44. fxg5 {[%emt 0:00:13]} fxg5 {[%emt 0:01:00]} 45. Rf8+ {[%emt 0:00:06]} Kg6 {[%emt 0:01:44]} 46. Kg4 {[%emt 0:01:10]} Kh7 {[%emt 0:03:13]} 47. Rh8+ {[%emt 0:00:52]} Kg6 {[%emt 0:00:08]} 48. Rg8+ {[%emt 0:00:03]} Kf7 {[%emt 0:01:50]} 49. Rg7+ {[%emt 0:00:10]} Kf8 {[%emt 0:00:31]} 50. Rxg5 {[%emt 0:00:07]} Be1 {[%emt 0:00:39]} 51. Bc5 {[%emt 0:00:06]} 1-0

[Event "EYTCC U12 Open 2019"]
[Site "Pardubice"]
[Date "2019.07.15"]
[Round "5.22"]
[White "Skrbec, Leon"]
[Black "Navumenka, Mikhei"]
[Result "1/2-1/2"]
[ECO "A40"]
[WhiteElo "1896"]
[BlackElo "2196"]
[Annotator "ChessBase"]
[PlyCount "75"]
[EventDate "2019.07.11"]
[EventType "swiss"]
[EventCountry "CZE"]
[SourceTitle "playchess.com"]
[Source "ChessBase"]
[SourceQuality "1"]
[WhiteTeam "Slovenia"]
[BlackTeam "Belarus"]
[WhiteTeamCountry "SLO"]
[BlackTeamCountry "BLR"]
[TimeControl "40/5400+30:1800+30"]

1. d4 {[%emt 0:00:00]} Nf6 {[%emt 0:00:00]} 2. c4 {[%emt 0:00:00]} e6 {[%emt 0:00:00]} 3. g3 {[%emt 0:00:00]} d5 {[%emt 0:07:44]} 4. Nf3 {[%emt 0:00:35]} Bb4+ {[%emt 0:00:07]} 5. Bd2 {[%emt 0:00:07]} Be7 {[%emt 0:00:03]} 6. Bg2 {[%emt 0:00:36]} O-O {[%emt 0:00:15]} 7. O-O {[%emt 0:00:32]} c6 {[%emt 0:00:07]} 8. Qc2 {[%emt 0:01:07]} b6 {[%emt 0:00:50]} 9. Bf4 {[%emt 0:00:56]} Bb7 {[%emt 0:00:12]} 10. Rd1 {[%emt 0:01:43]} Nbd7 {[%emt 0:09:22]} 11. Ne5 {[%emt 0:01:37]} Nh5 {[%emt 0:02:15]} 12. Bc1 {[%emt 0:01:51]} f5 {[%emt 0:03:44]} 13. Nc3 {[%emt 0:01:08]} Nhf6 {[%emt 0:00:24]} 14. b3 {[%emt 0:02:22]} Bd6 {[%emt 0:01:30]} 15. f4 {[%emt 0:04:35]} Qe7 {[%emt 0:00:55]} 16. Bb2 {[%emt 0:03:00]} Rac8 {[%emt 0:00:31]} 17. Rac1 {[%emt 0:00:52]} Kh8 {[%emt 0:09:25]} 18. cxd5 {[%emt 0:03:19]} cxd5 {[%emt 0:02:49]} 19. Qd3 {[%emt 0:00:28]} Ba3 {[%emt 0:01:30]} 20. Bxa3 {[%emt 0:01:01]} Qxa3 {[%emt 0:00:36]} 21. Nxd7 {[%emt 0:07:04]} Nxd7 {[%emt 0:02:00]} 22. Qe3 {[%emt 0:00:41]} Nf6 {[%emt 0:24:42]} 23. Nb5 {[%emt 0:04:49]} Qxa2 {[%emt 0:08:19]} 24. Ra1 {[%emt 0:01:19]} Qb2 {[%emt 0:00:43]} 25. Rdb1 {[%emt 0:01:47]} Ng4 {[%emt 0:03:32]} 26. Rxb2 {[%emt 0:00:39]} Nxe3 {[%emt 0:00:05]} 27. Nd6 {[%emt 0:08:17]} Rc7 {[%emt 0:00:44]} 28. Bf3 {[%emt 0:01:06]} Bc6 {[%emt 0:06:26]} 29. Rc1 {[%emt 0:02:14]} a6 {[%emt 0:01:47]} 30. Ra2 {[%emt 0:05:39]} g5 {[%emt 0:06:52]} 31. Rxa6 {[%emt 0:04:24]} g4 {[%emt 0:03:20]} 32. Rxb6 {[%emt 0:12:48]} gxf3 {[%emt 0:01:23]} 33. exf3 {[%emt 0:02:12]} Ra8 {[%emt 0:01:23]} 34. Kf2 {[%emt 0:04:38]} Bb5 {[%emt 0:02:01]} 35. Rxc7 {[%emt 0:03:32]} Ra2+ {[%emt 0:00:01]} 36. Kg1 {[%emt 0:00:06]} Ra1+ {[%emt 0:00:02]} 37. Kf2 {[%emt 0:00:07]} Ra2+ {[%emt 0:00:04]} 38. Kg1 {[%emt 0:00:17]} 1/2-1/2